Cogmind - Beta 13 @@@ ROGUE MODE // 2024.03.20 @ 18:18:32 Player: ILikeVoltron Result: Destroyed by G-34 Mercenary with Small Laser Performance ------------- Evolutions (0) 0 Regions Visited (2) 400 Robots Destroyed (17) 85 Value Destroyed (350) 350 Prototype IDs (0) 0 Alien Tech Used (0) 0 Bonus (0) 0 TOTAL SCORE: 835 Bonus ------- None Cogmind --------- Core Integrity 0/250 Matter 275/300 Energy 100/100 System Corruption 0% Temperature Cool (6) Movement Treading (160) Location -10/Subcaves Parts ------- > --- POWER (1) -------- (None) > --- PROPULSION (2) --- Light Treads Light Treads > --- UTILITY (2) ------ Large Storage Unit Light Armor Plating > --- WEAPON (2) ------- Assault Rifle Light Cannon > --- INVENTORY (15) --- Ion Engine Light Treads Compact Wheel Medium Storage Unit Medium Storage Unit Large Storage Unit Large Matter Pod (150) Structural Scanner Seismic Detector Light Armor Plating Mining Laser Peak State ------------ > --- POWER ------------ Light Ion Engine > --- PROPULSION ------- Light Treads Light Treads > --- UTILITY ---------- Large Storage Unit Hacking Suite > --- WEAPON ----------- EM Pulse Gun Assault Rifle > --- INVENTORY -------- Light Ion Engine Light Treads Medium Storage Unit Medium Storage Unit Large Storage Unit Large Matter Pod Seismic Detector Light Armor Plating Light Armor Plating Small Laser [Rating: 10] Favorites ----------- Power Light Ion Engine Engine Light Ion Engine Propulsion Light Treads Treads Light Treads Leg Aluminum Leg Utility Signal Interpreter Storage Large Storage Unit Processor Signal Interpreter Hackware Hacking Suite Protection Light Armor Plating Weapon EM Pulse Gun Energy Gun EM Pulse Gun Ballistic Gun Light Assault Rifle Ballistic Cannon Light Cannon Special Weapon Mining Laser Build | -11 -10 -10 ------- Run | Yrd Mat Sub Slots Evolved . | . . . Power . | . . . Propulsion . | . . . Utility . | . . . Weapon . | . . . Parts Attached 23 | . 21 2 Power 3 | . 3 . Engine 3 | . 3 . Core . | . . . Reactor . | . . . Propulsion 5 | . 5 . Treads 2 | . 2 . Leg 3 | . 3 . Wheel . | . . . Hover . | . . . Flight . | . . . Utility 7 | . 6 1 Device . | . . . Storage 4 | . 4 . Processor 1 | . 1 . Hackware 1 | . 1 . Protection 1 | . . 1 Artifact . | . . . Weapon 8 | . 7 1 Energy Gun 3 | . 3 . Energy Cannon . | . . . Ballistic Gun 2 | . 1 1 Ballistic Cannon 1 | . 1 . Launcher . | . . . Special Weapon 2 | . 2 . Impact Weapon . | . . . Slashing Weapon . | . . . Piercing Weapon . | . . . Special Melee Weapon . | . . . Unidentified Prototypes . | . . . Parts Lost 8 | . 6 2 Power 3 | . 2 1 Propulsion 2 | . 2 . Utility . | . . . Weapon 3 | . 2 1 Highest Loss Streak 3 | . 3 2 To Critical Strikes . | . . . Average Slot Usage (%) 97 | . 97 100 Engine 13 | . 13 14 Treads 14 | . 14 28 Leg 12 | . 12 . Storage 13 | . 13 14 Processor 7 | . 7 . Hackware 5 | . 6 . Energy Gun 17 | . 17 14 Ballistic Gun 6 | . 6 . Ballistic Cannon 3 | . 3 14 Naked Turns . | . . . Heaviest Build 31 | 11 28 31 Greatest Support 40 | 20 40 40 Greatest Overweight (x) 1 | . 1 . Average Overweight (x) . | . . . Largest Inventory Capacity 15 | . 15 15 Average Capacity 12 | . 12 15 Most Carried 13 | . 13 13 Average Carried 9 | . 9 12 Final Capacity 15 | 8 15 15 Final Carried 13 | 6 13 11 Class Distribution -------------------- 100% | Mutant Dominant Class ---------------- Mutant | -10/Materials Mutant | -10/Subcaves Resources | -11 -10 -10 ----------- Run | Yrd Mat Sub Matter Collected 604 | 185 419 . Remotely . | . . . Salvage Created 655 | . 655 . Parts 35 | . 35 . Haulers Intercepted 2 | . 2 . Recyclers Shooed . | . . . Parts Field Recycled . | . . . Retrieved Matter . | . . . Parts Self-Destructed . | . . . Prevented . | . . . Kills | -11 -10 -10 ------- Run | Yrd Mat Sub Combat Hostiles Destroyed 9 | . 9 . Guns 9 | . 9 . Classes Destroyed 6 | . 6 . Hauler 2 | . 2 . Recycler 2 | . 2 . Operator 2 | . 2 . Watcher 2 | . 2 . Swarmer 3 | . 3 . Grunt 6 | . 6 . Best Kill Streak 2 | . 2 . Combat Bots Only 2 | . 2 . Max Kills in Single Turn 2 | . 2 . Gunslinging . | . . . Exploded . | . . . Melee . | . . . Uniques/NPCs Destroyed . | . . . Combat | -11 -10 -10 -------- Run | Yrd Mat Sub Hostile Shots Fired 106 | . 98 8 Missed 29 | . 28 1 Damage Taken 899 | . 802 97 Core 257 | . 216 41 Absorbed by Shields . | . . . Regen/Repaired (Parts) 11 | . 11 . Core Remaining (%) 100 | 100 . . Volleys Fired 82 | . 79 3 Largest 2 | . 2 2 Hottest 100 | . 100 75 Shots Fired 154 | . 148 6 Gun 142 | . 139 3 Cannon 9 | . 6 3 Launcher . | . . . Special 3 | . 3 . Kinetic 47 | . 43 4 Thermal 68 | . 68 . Explosive . | . . . Electromagnetic 39 | . 37 2 Robot Hit Streak 7 | . 7 5 Robot Miss Streak 6 | . 6 2 Penetration Max . | . . . Secondary Targets 2 | . 2 . Max Gunslinging Chain 1 | . 1 . Shots Hit Robots 84 | . 81 3 Core Hits 30 | . 29 1 Critical Kills . | . . . Critical Parts Destroyed . | . . . Critical Strikes 1 | . 1 . Corrupt 1 | . 1 . Melee Attacks . | . . . Impact . | . . . Slashing . | . . . Piercing . | . . . Sneak Attacks . | . . . Combat Hostiles . | . . . Follow-up Attacks . | . . . Damage Inflicted 1078 | . 1034 44 Guns 976 | . 965 11 Cannons 33 | . . 33 Explosions 69 | . 69 . Melee . | . . . Ramming . | . . . Kinetic 300 | . 267 33 Thermal 438 | . 438 . Explosive . | . . . Electromagnetic 340 | . 329 11 Impact . | . . . Slashing . | . . . Piercing . | . . . Highest Corruption . | . . . Average Corruption . | . . . Corruption Purged . | . . . Corruption Blocked . | . . . Overload Shots . | . . . Overflow Damage . | . . . Projectiles . | . . . Explosions . | . . . Melee . | . . . Knockbacks . | . . . Impact . | . . . Kinetic . | . . . Secondary . | . . . Self-Inflicted Damage . | . . . Shots . | . . . Rammed . | . . . Targets Rammed . | . . . Kicked . | . . . Crushed . | . . . Highest Temperature 180 | . 180 . Average Temperature 57 | . 57 . Received Heat Transfer 417 | . 360 57 Siege Activations . | . . . Robots Corrupted . | . . . Combat Hostiles . | . . . Parts Fried 2 | . 2 . Impact Corruptions . | . . . Robots Melted . | . . . Combat Hostiles . | . . . Parts Melted . | . . . Heat Transferred 950 | . 950 . Parts Sabotaged . | . . . Parts Stolen . | . . . Parts Stripped . | . . . Power Chain Reactions 2 | . 2 . Alert | -11 -10 -10 ------- Run | Yrd Mat Sub Peak Influence 187 | . 187 . Initial . | . . . Average 51 | . 51 . Maximum Alert Level . | . . . Low Security (%) 100 | . 100 . Level 1 . | . . . Level 2 . | . . . Level 3 . | . . . Level 4 . | . . . Level 5 . | . . . High Security . | . . . Max Security . | . . . Squads Dispatched 1 | . 1 . Investigation . | . . . Extermination . | . . . Reinforcement 1 | . 1 . Assault . | . . . Garrison . | . . . Intercept . | . . . Searches Triggered . | . . . Construction Impeded . | . . . Haulers Reinforced . | . . . Active Scanning Responses . | . . . Cargo Convoy Interrupts . | . . . Stealth | -11 -10 -10 --------- Run | Yrd Mat Sub Distress Signals 1 | . 1 . Communications Jammed . | . . . Distress Signals . | . . . Times Spotted 27 | . 25 2 Peak Tracking Total 7 | . 7 2 Tactical Retreats . | . . . Traps | -11 -10 -10 ------- Run | Yrd Mat Sub Traps Triggered . | . . . Indirectly . | . . . Trap Hack Attempts . | . . . Triggered . | . . . Disarmed . | . . . Reprogrammed . | . . . Reused . | . . . Traps Extracted . | . . . Installed . | . . . Triggered . | . . . Machines | -11 -10 -10 ---------- Run | Yrd Mat Sub Machines Disabled 1 | . 1 . Max in Single Turn 1 | . 1 . Machines Repaired . | . . . Machines Dismantled . | . . . Machines Sabotaged . | . . . Overloaded Fab Kills . | . . . Hacking | -11 -10 -10 --------- Run | Yrd Mat Sub Machines Accessed 8 | . 8 . Terminals 6 | . 6 . Fabricators . | . . . Repair Stations 1 | . 1 . Recycling Units 1 | . 1 . Scanalyzers . | . . . Garrison Access . | . . . Total Hacks 22 | . 22 . Successful 17 | . 17 . Failed 5 | . 5 . Catastrophic . | . . . Database Lockouts . | . . . Manual 11 | . 11 . Terminals 17 | . 17 . Fabricators . | . . . Repair Stations 2 | . 2 . Recycling Units 3 | . 3 . Scanalyzers . | . . . Garrison Access . | . . . Terminal Hacks 8 | . 8 . Locate Traps 2 | . 2 . Dispatch Records 1 | . 1 . Transport Status 1 | . 1 . Hauler Manifests 2 | . 2 . Zone Layout 2 | . 2 . Fabricator Hacks . | . . . Repair Station Hacks 2 | . 2 . Scan Component 1 | . 1 . Repair 1 | . 1 . Recycling Unit Hacks 2 | . 2 . Report Inventory 1 | . 1 . Retrieve Matter 1 | . 1 . Scanalyzer . | . . . Garrison Access Hacks . | . . . Unauthorized Hacks 5 | . 5 . Terminals 4 | . 4 . Assimilate 1 | . 1 . Botnet 3 | . 3 . Fabricators . | . . . Repair Stations . | . . . Recycling Units 1 | . 1 . Recyclers 1 | . 1 . Scanalyzers . | . . . Garrison Access . | . . . Data Cores Recovered 1 | . 1 . Used 1 | . 1 . Hacking Detections 5 | . 5 . Full Trace Events . | . . . Feedback Events . | . . . Feedback Blocked . | . . . Robot Schematics Acquired . | . . . Robots Built . | . . . Authchips . | . . . Time . | . . . Total Robot Build Rating . | . . . Part Schematics Acquired . | . . . Parts Built . | . . . Authchips . | . . . Time . | . . . Total Part Build Rating . | . . . Parts Repaired 1 | . 1 . Time 26 | . 26 . Parts Recycled . | . . . Recycled Matter . | . . . Retrieved Matter . | . . . Retrieved Components . | . . . Parts Scanalyzed . | . . . Part Schematics Acquired . | . . . Parts Damaged . | . . . Bothacking | -11 -10 -10 ------------ Run | Yrd Mat Sub Used RIF Installer . | . . . Robots Hacked . | . . . Non-combat . | . . . Combat . | . . . Robot Hacks Applied . | . . . Relay Couplers Released . | . . . Fabnet Peak Effective % . | . . . Robots Rewired . | . . . Allies Hacked . | . . . Hacks Repelled . | . . . Allies | -11 -10 -10 -------- Run | Yrd Mat Sub Total Allies . | . . . Largest Group . | . . . Highest-Rated Group . | . . . Highest-Rated Ally . | . . . Total Orders . | . . . Ally Attacks . | . . . Total Damage . | . . . Kills . | . . . Allies Corrupted . | . . . Allies Melted . | . . . Intel | -11 -10 -10 ------- Run | Yrd Mat Sub Robot Analysis Total . | . . . Derelict Logs Recovered . | . . . Drone Launches . | . . . Drone Recoveries . | . . . Exploration | -11 -10 -10 ------------- Run | Yrd Mat Sub Turns Passed 1295 | . 1264 31 Spaces Moved 693 | 1 679 13 Core . | . . . Treads 363 | . 350 13 Legs 330 | 1 329 . Wheels . | . . . Hover . | . . . Flight . | . . . Fastest Speed 120 | 120 120 160 Average Speed 142 | 120 142 160 Slowest Speed 190 | 120 190 160 Overloaded Moves . | . . . Propulsion Burnouts . | . . . Robots Hopped . | . . . Cave-ins Triggered . | . . . Exploration Rate (%) 27 | 1 80 2 Regions Visited 2 Branch Regions 1 Pre-discovered Areas . | . . . Known Exits Taken . | . . . Unknown Exits Taken 2 | 1 1 . Scrap Searched . | . . . Spaces Dug 2 | . 2 . Terrain Destroyed 12 | . 12 . Melee . | . . . Projectile 2 | . 2 . AOE 10 | . 10 . Terrain Rammed . | . . . Walls Destroyed . | . . . Machines Disabled . | . . . Actions | -11 -10 -10 --------- Run | Yrd Mat Sub Total 845 | . 827 18 Wait 19 | . 19 . Move 691 | . 678 13 Hop . | . . . Pick Up 20 | . 20 . Fast Attach 6 | . 6 . Attach 7 | . 6 1 Detach 3 | . 3 . Swap 10 | . 9 1 Drop 7 | . 7 . Fire 82 | . 79 3 Melee . | . . . Ram . | . . . Kick . | . . . Crush . | . . . Escape Stasis . | . . . Rewire . | . . . Trap . | . . . Miscellaneous . | . . . Route ------- -11/Scrapyard -10/Materials (discovered 4 exits: *Mat x2 / [*Min] / [*Sub]) -10/Subcaves History --------- Turn | Location | Event 1 | -11/Scrapyard | Discovered new exit (range 0) 1 | -11/Scrapyard | Entered Materials 85 | -10/Materials | Discovered new exit (range 5) 89 | -10/Materials | Identified exit to Materials 138 | -10/Materials | Discovered new exit (range 16) 320 | -10/Materials | Core integrity fell below 50% 344 | -10/Materials | Build established: Mutant 346 | -10/Materials | Lost 3 parts (2n1w) 360 | -10/Materials | Core integrity fell below 20% 866 | -10/Materials | Discovered exit to Materials (range 13) 933 | -10/Materials | Repaired Lrg. Storage Unit 1246 | -10/Materials | Discovered new exit (range 14) 1265 | -10/Materials | Entered Subcaves 1296 | -10/Subcaves | Destroyed by G-34 Mercenary with Small Laser Last Messages --------------- 00937_ Acquired Med. Storage Unit. 00943_ Acquired Seismic Detector. 00945_ Acquired Lgt. Cannon. 00948_ Acquired Lrg. Storage Unit. 00952_ Acquired Lgt. Armor Plating. 00959_ Acquired 10 matter. 00962_ Acquired Ion Engine. 00967_ Acquired Com. Wheel. 00978_ Acquired 22 matter. 00988_ Acquired 12 matter. 01018_ Acquired Mining Laser. 01061_ Connecting with Terminal... 01246_ EXIT=FOUND LOCATION=UNKNOWN AMBIENT_HEAT=-10 GOAL=ESCAPE 01269_ Discarded Hacking Suite. 01291_ EM Pulse Gun destroyed. 01294_ Critical hit (Burn: +37). 01294_ Lgt. Ion Engine destroyed. Map ----- +----------------------------------------------------+ | ?????????????????????????????????????????????????? | | ?????????????????????????????????????????????????? | | ?????????????????????????????????????????????????? | | ?????????????????????????????????????????????????? | | ?????????????????????????????????????????????????? | | ?????????????????????????????????????????????????? | | ?????????????????????????????????????????????????? | | ?????????????????????????????????????????????????? | | ?????????????????????????????????????????????????? | | ?????????????????????????????????????????????????? | | ?????????????????????????????????????????????????? | | ????????????????????????? ??????????????????? | | ???????????????????????? ##????????????????? | | ?????????????????????? #? ??????????????? | | ??????????????????????? # ????????????? | | ??????????????????????? #%Y ????????????? | | ???????????????????????? !????????????? | | ???????????????????????? g ?????????????? | | ????????????????????????# ??????????????? | | ????????????????????????? #???????????????? | | ?????????????????????????# ###?????????????? | | ?????????????????????????# # ###???????????? | | ????????????????????????## ? #???????????? | | ????????????????????????# #?? ##??????????? | | ???????????????????????## ### # #??????????? | | ???????????????????????# @ #### #???????????? | | ???????????????????????# ##??????????? | | ???????????????????????# #??????????? | | ???????????????????????# # ### #?????????? | | ???????????????????????#######?### ## #????????? | | ?????????????????????????????????###?# #????????? | | ??????????????????????????????????????###????????? | | ?????????????????????????????????????????????????? | | ?????????????????????????????????????????????????? | | ?????????????????????????????????????????????????? | | ?????????????????????????????????????????????????? | | ?????????????????????????????????????????????????? | | ?????????????????????????????????????????????????? | | ?????????????????????????????????????????????????? | | ?????????????????????????????????????????????????? | | ?????????????????????????????????????????????????? | | ?????????????????????????????????????????????????? | | ?????????????????????????????????????????????????? | | ?????????????????????????????????????????????????? | | ?????????????????????????????????????????????????? | | ?????????????????????????????????????????????????? | | ?????????????????????????????????????????????????? | | ?????????????????????????????????????????????????? | | ?????????????????????????????????????????????????? | | ?????????????????????????????????????????????????? | +----------------------------------------------------+ Best States ------------- Heat Dissipation 25 Energy Generation 10 Energy Capacity 125 Matter Stores 300 Matter Capacity 300 Sight Range 16 Terrain Scan Density 10 Armor Coverage 150 Evasion (%) 55 Recoil Reduction 2 Offensive Hacking 10 Item Schematics ----------------- None Robot Schematics ------------------ None Fabricated ------------ Nothing Alien Tech Used ----------------- None Achievements -------------- None Challenges ------------ None Game ------ Seed DisruptionGlidesysAutohacker Manual? 0 Play Time 00:15:16 Cumulative 108.3 hours Start 2024.03.20 @ 18:03:42 End 2024.03.20 @ 18:18:32 Sessions 1 Manual Loads 0 Difficulty Rogue Special Mode None Game No. 170 Rogue 166 Adventurer 0 Explorer 4 Win Type - Total 0 Types 0/0/0/0/0/0/0/0/0 Lore% 25 Gallery% 42 Achievement% 33 Wizard Run 0 Options --------- Layout 2 ASCII 0 Keyboard 1 Movement Arrows Keybinds 0 Fullscreen 1 Font 32/SmallcapsGlow Map View 130x44 Zoom Use 0% Tactical HUD 1 Map Filters NONE Filters NONE Steam 1 RUN: 81e750e6-22db-4d1f-bc38-149f028ff871